Cogmind - Beta 17.1 @@@ ROGUE MODE // 2026.09.01 @ 00:41:58 Player: TheSkyeDoctor Result: Destroyed by G-47 Trooper with Particle Gun Performance ------------- Evolutions (1) 500 Regions Visited (6) 1200 Robots Destroyed (28) 140 Value Destroyed (514) 514 Prototype IDs (23) 460 Alien Tech Used (0) 0 Bonus (282) 282 TOTAL SCORE: 3096 Bonus ------- Aligned with FarCom 300 Friendly Fire -18 Cogmind --------- Core Integrity 0/400 Matter 215/300 Energy 100/100 System Corruption 0% Temperature Cool (9) Movement Rolling (105) Ox1 Location -8/Mines Parts ------- > --- POWER (1) -------- (None) > --- PROPULSION (2) --- Armored Wheel > --- UTILITY (2) ------ Medium Storage Unit Signal Interpreter > --- WEAPON (4) ------- Light EM Pulse Cannon Grenade Launcher Heavy Hammer > --- INVENTORY (10) --- Flying Fortress v7 High-capacity Battery (250) High-capacity Matter Pod (200) Improved Terrain Scanner Cloak of Protection Light Armor Plating Peak State ------------ > --- POWER ------------ (None) > --- PROPULSION ------- Armored Wheel > --- UTILITY ---------- Medium Storage Unit Signal Interpreter > --- WEAPON ----------- Particle Gun Light EM Pulse Cannon Grenade Launcher Heavy Hammer > --- INVENTORY -------- Flying Fortress v7 High-capacity Battery High-capacity Matter Pod Improved Terrain Scanner Cloak of Protection Light Armor Plating [Rating: 15] Favorites ----------- Power Light Ion Engine Engine Light Ion Engine Propulsion Light Treads Treads Light Treads Wheel Armored Wheel Utility Signal Interpreter Device Seismic Detector Storage Medium Storage Unit Processor Signal Interpreter Weapon Heavy Hammer Energy Gun Particle Gun Energy Cannon Light EM Pulse Cannon Ballistic Gun Light Assault Rifle Launcher Grenade Launcher Impact Weapon Heavy Hammer Build | -11 -10 -10 -9 -9 -9 -8 ------- Run | Yrd Mat Min Mat Min Exi Min Slots Evolved 2 | . . . 2 . . . Power . | . . . . . . . Propulsion . | . . . . . . . Utility . | . . . . . . . Weapon 2 | . . . 2 . . . Parts Attached 24 | 7 2 3 8 2 1 1 Power 3 | 1 . 1 1 . . . Engine 3 | 1 . 1 1 . . . Core . | . . . . . . . Reactor . | . . . . . . . Propulsion 4 | 2 . . 2 . . . Treads 2 | 2 . . . . . . Leg . | . . . . . . . Wheel 2 | . . . 2 . . . Hover . | . . . . . . . Flight . | . . . . . . . Utility 6 | 2 1 . 2 . 1 . Device 2 | 1 . . 1 . . . Storage 3 | 1 1 . . . 1 . Processor 1 | . . . 1 . . . Hackware . | . . . . . . . Protection . | . . . . . . . Artifact . | . . . . . . . Weapon 11 | 2 1 2 3 2 . 1 Energy Gun 4 | 2 1 . . 1 . . Energy Cannon 1 | . . . . 1 . . Ballistic Gun 3 | . . 1 2 . . . Ballistic Cannon . | . . . . . . . Launcher 2 | . . 1 . . . 1 Special Weapon . | . . . . . . . Impact Weapon 1 | . . . 1 . . . Slashing Weapon . | . . . . . . . Piercing Weapon . | . . . . . . . Special Melee Weapon . | . . . . . . . Unidentified Prototypes . | . . . . . . . Parts Lost 15 | . 1 3 10 . . 1 Power 3 | . . 1 2 . . . Propulsion 3 | . . . 3 . . . Utility 2 | . . 1 1 . . . Weapon 7 | . 1 1 4 . . 1 Highest Loss Streak 4 | . 1 2 4 . . 1 To Critical Strikes . | . . . . . . . Average Backups 4 | 1 3 4 4 4 5 6 Power . | . 1 . . . . . Propulsion . | . 1 1 . . . 1 Utility 2 | . 1 1 2 3 4 5 Weapon 1 | . . 1 1 1 1 . Tool/Special . | . . . . . . . Unused Backups 6 | . . . . . . 6 Power . | . . . . . . . Propulsion 1 | . . . . . . 1 Utility 5 | . . . . . . 5 Weapon . | . . . . . . . Tool/Special . | . . . . . . . Average Slot Usage (%) 76 | . 97 80 78 45 62 67 Engine 7 | . 14 13 9 . . . Treads 13 | . 28 28 11 . . . Wheel 5 | . . . 7 11 11 11 Device 6 | . 14 10 7 . . . Storage 5 | . 14 . . . 7 11 Processor 5 | . . . 7 11 11 11 Energy Gun 12 | . 26 12 2 6 11 10 Energy Cannon 4 | . . . . 6 11 11 Ballistic Gun 6 | . . 12 18 . . . Launcher 2 | . . 2 5 . . 1 Impact Weapon 6 | . . . 8 11 11 11 Peak Build Rating 15 | 7 7 6 12 9 14 15 Average Rating 8 | 5 6 5 8 7 11 14 On Entrance 6 | . 7 7 5 5 9 14 Avg Prop Armor Cover (%) . | . . . . . . . Naked Turns . | . . . . . . . Heaviest Build 48 | 13 48 7 15 10 20 23 Greatest Support 40 | 40 40 40 40 12 12 12 Greatest Overweight (x) 1 | . 1 . . . 1 1 Average Overweight (x) . | . . . . . . 1 Largest Inventory Capacity 20 | 8 20 5 5 5 10 10 Average Capacity 8 | 7 18 5 5 5 8 10 Most Carried 10 | 3 5 5 5 4 10 10 Average Carried 5 | 1 3 4 4 4 6 9 Final Capacity 20 | 8 20 5 5 5 10 10 Final Carried 10 | 3 5 5 4 4 10 9 Class Distribution -------------------- 83% | Mutant 10% | Skirmisher 5% | Gunner Dominant Class ---------------- Mutant | -10/Materials Mutant | -10/Mines Skirmisher | -9/Materials Mutant | -9/Mines Mutant | -9/Exiles Mutant | -8/Mines Resources | -11 -10 -10 -9 -9 -9 -8 ----------- Run | Yrd Mat Min Mat Min Exi Min Matter Collected 521 | 270 20 44 137 20 . 30 Remotely . | . . . . . . . Salvage Created 982 | 166 152 20 305 . . 339 Parts 46 | 9 11 . 20 . . 6 Haulers Intercepted 1 | . . . 1 . . . Recyclers Shooed . | . . . . . . . Parts Field Recycled . | . . . . . . . Retrieved Matter . | . . . . . . . Parts Self-Destructed . | . . . . . . . Prevented . | . . . . . . . Parts Restored . | . . . . . . . Kills | -11 -10 -10 -9 -9 -9 -8 ------- Run | Yrd Mat Min Mat Min Exi Min Combat Hostiles Destroyed 15 | . 3 1 7 . . 4 Melee 1 | . . . 1 . . . Guns 9 | . 3 1 5 . . . AOE 4 | . . . . . . 4 Classes Destroyed 11 | 3 2 1 3 . . 2 Worker 3 | 1 . . . . . 2 Builder 3 | . . . . . . 3 Tunneler 2 | 2 . . . . . . Hauler 1 | . . . 1 . . . Recycler 4 | 1 1 . . . . 2 Operator 1 | . 1 . . . . . Swarmer 6 | . 3 . 3 . . . Grunt 3 | . . . . . . 3 Duelist 2 | . . . 1 . . 1 Sentry 3 | . . . 3 . . . Assembled 1 | . . 1 . . . . Best Kill Streak 8 | 2 3 1 3 . . 8 Combat Bots Only 4 | . 3 1 4 . . 4 Max Kills in Single Turn 2 | 1 2 1 1 . . 2 Gunslinging 1 | . 1 . . . . . Exploded 1 | . . . . . . 1 Melee 1 | . . . 1 . . . Uniques/NPCs Destroyed . | . . . . . . . Combat | -11 -10 -10 -9 -9 -9 -8 -------- Run | Yrd Mat Min Mat Min Exi Min Hostile Shots Fired 180 | . 41 32 93 . . 14 Missed 55 | . 14 11 26 . . 4 Hits 125 | . 27 21 67 . . 10 Melee 3 | . . . 3 . . . Projectile 122 | . 27 21 64 . . 10 Critical Strikes 6 | . 2 . 4 . . . Damage Taken 1833 | . 332 278 980 . . 243 Core 525 | . 84 39 324 . . 78 Absorbed by Shields . | . . . . . . . Core Remaining (%) 75 | 100 . 50 . . . . Volleys Fired 80 | 15 18 16 20 . . 11 Largest 3 | 2 2 2 3 . . 3 Hottest 151 | 90 90 90 60 . . 151 Shots Fired 158 | 30 35 30 49 . . 14 Gun 146 | 30 35 30 49 . . 2 Cannon 2 | . . . . . . 2 Launcher 10 | . . . . . . 10 Special . | . . . . . . . Kinetic 56 | . . 7 49 . . . Thermal 67 | 15 27 23 . . . 2 Explosive 10 | . . . . . . 10 Electromagnetic 25 | 15 8 . . . . 2 Robot Hit Streak 8 | 6 5 8 8 . . 6 Robot Miss Streak 4 | 2 3 3 4 . . 1 Penetration Max . | . . . . . . . Secondary Targets 2 | . 1 . 1 . . . Max Gunslinging Chain 1 | . 1 . 1 . . . Shots Hit Robots 113 | 19 17 23 41 . . 13 Core Hits 43 | 5 7 5 9 . . 17 Critical Kills . | . . . . . . . Critical Parts Destroyed 1 | . . 1 . . . . Critical Strikes 1 | . . 1 . . . . Destroy 1 | . . 1 . . . . Melee Attacks 21 | . . . 16 . . 5 Impact 21 | . . . 16 . . 5 Slashing . | . . . . . . . Piercing . | . . . . . . . Sneak Attacks 4 | . . . 1 . . 3 Combat Hostiles . | . . . . . . . Follow-up Attacks . | . . . . . . . Damage Inflicted 2618 | 243 226 251 758 . . 1140 Guns 1039 | 243 226 251 285 . . 34 Cannons 23 | . . . . . . 23 Explosions 697 | . . . . . . 697 Melee 859 | . . . 473 . . 386 Ramming . | . . . . . . . Kinetic 316 | . . 31 285 . . . Thermal 538 | 100 184 220 . . . 34 Explosive 697 | . . . . . . 697 Electromagnetic 208 | 143 42 . . . . 23 Impact 859 | . . . 473 . . 386 Slashing . | . . . . . . . Piercing . | . . . . . . . Highest Corruption . | . . . . . . . Average Corruption . | . . . . . . . Corruption Purged . | . . . . . . . Corruption Blocked . | . . . . . . . Overload Shots . | . . . . . . . Overflow Damage 358 | . . . 81 . . 277 Projectiles 18 | . . . . . . 18 Explosions 5 | . . . . . . 5 Melee 335 | . . . 81 . . 254 Knockbacks 5 | . . . 1 . . 4 Impact 4 | . . . 1 . . 3 Kinetic . | . . . . . . . Secondary 1 | . . . . . . 1 Self-Inflicted Damage 80 | . . . . . . 80 Shots 4 | . . . . . . 4 Rammed . | . . . . . . . Targets Rammed . | . . . . . . . Kicked . | . . . . . . . Crushed . | . . . . . . . Highest Temperature 337 | 240 337 250 32 . . 120 Average Temperature 100 | 87 131 126 9 . . 57 Received Heat Transfer 702 | . 204 108 300 . . 90 Siege Activations . | . . . . . . . Martial Activations . | . . . . . . . Shielding Activations . | . . . . . . . Robots Disrupted . | . . . . . . . Combat Hostiles . | . . . . . . . Robots Corrupted 6 | . . . 1 . . 5 Combat Hostiles 1 | . . . 1 . . . Parts Fried 10 | 1 . . 4 . . 5 Impact Corruptions 14 | . . . 3 . . 11 Robots Melted . | . . . . . . . Combat Hostiles . | . . . . . . . Parts Melted . | . . . . . . . Heat Transferred 1424 | 296 507 547 . . . 74 Parts Sabotaged . | . . . . . . . Parts Stolen . | . . . . . . . Parts Stripped . | . . . . . . . Power Chain Reactions . | . . . . . . . Alert | -11 -10 -10 -9 -9 -9 -8 ------- Run | Yrd Mat Min Mat Min Exi Min Maximum Alert Level . | . . . . . . . Low Security (%) 100 | 100 100 100 100 100 . 100 Level 1 . | . . . . . . . Level 2 . | . . . . . . . Level 3 . | . . . . . . . Level 4 . | . . . . . . . Level 5 . | . . . . . . . High Security . | . . . . . . . Max Security . | . . . . . . . Peak Influence 132 | 5 70 . 132 43 . 107 Initial 43 | . . . . 43 . . Average 14 | . 16 . 33 28 . 6 Influence Increases 584 | 20 115 . 287 . . 162 Destroy 0b10 Robot/C 280 | . 60 . 140 . . 80 Destroy 0b10 Robot/NC 70 | 20 10 . 5 . . 35 Destroy Leader 72 | . 10 . 52 . . 10 Successful Hack 5 | . 5 . . . . . Disable Machine 15 | . . . 15 . . . Destroy Structure 37 | . . . . . . 37 Lose Combat Pursuer 105 | . 30 . 75 . . . Influence Decreases 477 | 20 115 . 175 99 13 55 Entered New Map 82 | . . . . 69 13 . Time Decay 315 | 20 115 . 105 30 . 45 Lost Part 80 | . . . 70 . . 10 Squads Dispatched 2 | . . . 2 . . . Investigation 1 | . . . 1 . . . Extermination . | . . . . . . . Reinforcement 1 | . . . 1 . . . Assault . | . . . . . . . Garrison . | . . . . . . . Intercept . | . . . . . . . Searches Triggered . | . . . . . . . Construction Impeded . | . . . . . . . Haulers Reinforced . | . . . . . . . Active Scanning Responses . | . . . . . . . Cargo Convoy Interrupts . | . . . . . . . Stealth | -11 -10 -10 -9 -9 -9 -8 --------- Run | Yrd Mat Min Mat Min Exi Min Distress Signals . | . . . . . . . Communications Jammed . | . . . . . . . Distress Signals . | . . . . . . . Times Spotted 37 | . 8 7 16 . . 6 Peak Tracking Total 6 | . 4 3 6 . . 5 Tactical Retreats 4 | . 1 1 2 . . . Traps | -11 -10 -10 -9 -9 -9 -8 ------- Run | Yrd Mat Min Mat Min Exi Min Traps Triggered . | . . . . . . . Indirectly . | . . . . . . . Trap Hack Attempts . | . . . . . . . Triggered . | . . . . . . . Disarmed . | . . . . . . . Reprogrammed . | . . . . . . . Reused . | . . . . . . . Traps Extracted . | . . . . . . . Installed . | . . . . . . . Triggered . | . . . . . . . Machines | -11 -10 -10 -9 -9 -9 -8 ---------- Run | Yrd Mat Min Mat Min Exi Min Machines Disabled 1 | . . . 1 . . . Max in Single Turn 1 | . . . 1 . . . Machines Repaired . | . . . . . . . Machines Dismantled . | . . . . . . . Machines Sabotaged . | . . . . . . . Overloaded Fab Kills . | . . . . . . . Hacking | -11 -10 -10 -9 -9 -9 -8 --------- Run | Yrd Mat Min Mat Min Exi Min Machines Accessed 4 | . 1 . 2 . 1 . Terminals 3 | . 1 . 2 . . . Fabricators . | . . . . . . . Repair Stations . | . . . . . . . Recycling Units . | . . . . . . . Scanalyzers . | . . . . . . . Garrison Access . | . . . . . . . Total Hacks 7 | . 1 . 5 . 1 . Successful 3 | . 1 . 1 . 1 . Failed 4 | . . . 4 . . . Catastrophic 1 | . . . 1 . . . Database Lockouts . | . . . . . . . Manual 7 | . 1 . 5 . 1 . Terminals 6 | . 1 . 5 . . . Fabricators . | . . . . . . . Repair Stations . | . . . . . . . Recycling Units . | . . . . . . . Scanalyzers . | . . . . . . . Garrison Access . | . . . . . . . Terminal Hacks 2 | . . . 1 . 1 . Branch Access Points 1 | . . . 1 . . . Proto ID Catalog 1 | . . . . . 1 . Fabricator Hacks . | . . . . . . . Repair Station Hacks . | . . . . . . . Recycling Unit Hacks . | . . . . . . . Scanalyzer . | . . . . . . . Garrison Access Hacks . | . . . . . . . Unauthorized Hacks 1 | . 1 . . . . . Terminals 1 | . 1 . . . . . Botnet 1 | . 1 . . . . . Fabricators . | . . . . . . . Repair Stations . | . . . . . . . Recycling Units . | . . . . . . . Scanalyzers . | . . . . . . . Garrison Access . | . . . . . . . Data Cores Recovered . | . . . . . . . Used . | . . . . . . . Hacking Detections 2 | . . . 2 . . . Full Trace Events 1 | . . . 1 . . . Feedback Events . | . . . . . . . Feedback Blocked . | . . . . . . . Robot Schematics Acquired . | . . . . . . . Robots Built . | . . . . . . . Authchips . | . . . . . . . Time . | . . . . . . . Total Robot Build Rating . | . . . . . . . Part Schematics Acquired . | . . . . . . . Parts Built . | . . . . . . . Authchips . | . . . . . . . Time . | . . . . . . . Total Part Build Rating . | . . . . . . . Part Studies Acquired . | . . . . . . . Parts Repaired . | . . . . . . . Time . | . . . . . . . Parts Recycled . | . . . . . . . Recycled Matter . | . . . . . . . Retrieved Matter . | . . . . . . . Retrieved Components . | . . . . . . . Parts Scanalyzed . | . . . . . . . Part Schematics Acquired . | . . . . . . . Parts Damaged . | . . . . . . . Bothacking | -11 -10 -10 -9 -9 -9 -8 ------------ Run | Yrd Mat Min Mat Min Exi Min Used RIF Installer . | . . . . . . . Robots Hacked . | . . . . . . . Non-combat . | . . . . . . . Combat . | . . . . . . . Robot Hacks Applied . | . . . . . . . Relay Couplers Released . | . . . . . . . Fabnet Peak Effective % . | . . . . . . . Robots Rewired . | . . . . . . . Allies Hacked . | . . . . . . . Hacks Repelled . | . . . . . . . Allies | -11 -10 -10 -9 -9 -9 -8 -------- Run | Yrd Mat Min Mat Min Exi Min Total Allies . | . . . . . . . Largest Group . | . . . . . . . Highest-Rated Group . | . . . . . . . Highest-Rated Ally . | . . . . . . . Total Orders . | . . . . . . . Ally Attacks . | . . . . . . . Total Damage . | . . . . . . . Kills . | . . . . . . . Allies Corrupted . | . . . . . . . Allies Melted . | . . . . . . . Intel | -11 -10 -10 -9 -9 -9 -8 ------- Run | Yrd Mat Min Mat Min Exi Min Active Infowar (turns) 906 | 14 353 270 269 . . . Sensors 269 | . . . 269 . . . Seismic 637 | 14 353 270 . . . . Robot Analysis Total . | . . . . . . . Derelict Logs Recovered 1 | . . . . 1 . . Drone Launches . | . . . . . . . Drone Recoveries . | . . . . . . . Exploration | -11 -10 -10 -9 -9 -9 -8 ------------- Run | Yrd Mat Min Mat Min Exi Min Turns Passed 1959 | 181 353 355 398 76 332 264 Spaces Moved 1225 | 81 131 189 203 82 329 210 Core 5 | 5 . . . . . . Treads 501 | 76 131 189 105 . . . Legs . | . . . . . . . Wheels 719 | . . . 98 82 329 210 Hover . | . . . . . . . Flight . | . . . . . . . Fastest Speed 50 | 50 160 160 85 90 90 105 Average Speed 130 | 153 225 160 125 90 99 105 Slowest Speed 240 | 160 240 160 160 90 105 105 Overloaded Moves . | . . . . . . . Propulsion Burnouts . | . . . . . . . Robots Hopped . | . . . . . . . Potential Cave-ins 4 | . . 4 . . . . Cave-ins Triggered . | . . . . . . . Exploration Rate (%) 35 | 5 30 51 29 9 70 51 Regions Visited 6 Branch Regions 4 Pre-discovered Areas . | . . . . . . . Known Exits Taken 3 | . . . 1 1 1 . Unknown Exits Taken 3 | 1 1 1 . . . . Scrap Searched 2 | . . 1 . 1 . . Spaces Dug . | . . . . . . . Terrain Destroyed 75 | . . . . . . 75 Melee . | . . . . . . . Projectile . | . . . . . . . AOE 75 | . . . . . . 75 Terrain Rammed . | . . . . . . . Walls Destroyed . | . . . . . . . Machines Disabled . | . . . . . . . Actions | -11 -10 -10 -9 -9 -9 -8 --------- Run | Yrd Mat Min Mat Min Exi Min Total 1402 | 105 153 214 284 83 332 231 Wait 36 | . . 2 30 . . 4 Move 1219 | 80 130 188 202 81 328 210 Hop . | . . . . . . . Pick Up 14 | 3 2 2 4 . 3 . Fast Attach 17 | 7 1 . 6 2 1 . Attach 8 | . . 3 4 . . 1 Detach 1 | . . 1 . . . . Swap 2 | . 1 1 . . . . Drop 4 | . 1 1 2 . . . Fire 80 | 15 18 16 20 . . 11 Melee 21 | . . . 16 . . 5 Ram . | . . . . . . . Kick . | . . . . . . . Crush . | . . . . . . . Escape Stasis . | . . . . . . . Rewire . | . . . . . . . Trap . | . . . . . . . Miscellaneous . | . . . . . . . Route ------- -11/Scrapyard -10/Materials -10/Mines -9/Materials (discovered 3 exits: *Mat / *Min / Sto) -9/Mines (discovered 2 exits: *Mat / *Exi) -9/Exiles -8/Mines History --------- Turn | Location | Event 44 | -11/Scrapyard | Discovered new exit (range 15) 182 | -11/Scrapyard | Entered Materials 304 | -10/Materials | Build established: Mutant 508 | -10/Materials | Discovered new exit (range 12) 535 | -10/Materials | Entered Mines 658 | -10/Mines | YI-UF0 nonchalantly dropped a Grenade Launcher on the ground 747 | -10/Mines | Assembled infested the area 879 | -10/Mines | Discovered new exit (range 6) 890 | -10/Mines | Entered Materials 890 | -9/Materials | Evolved 2 slots: Weapon x2 1137 | -9/Materials | Lost 3 parts (2n1w) 1199 | -9/Materials | Core integrity fell below 50% 1240 | -9/Materials | Lost 4 parts (1n3w) 1249 | -9/Materials | Discovered new exit (range 15) 1251 | -9/Materials | Identified exit to Mines 1251 | -9/Materials | Identified exit to Storage 1287 | -9/Materials | Core integrity fell below 20% 1288 | -9/Materials | Entered Mines 1302 | -9/Mines | Learned Materials stockpile data 1302 | -9/Mines | Discovered new exit (range 4) 1310 | -9/Mines | Identified exit to Materials 1360 | -9/Mines | Deemed a non-threat by the Exiles lab entrance 1361 | -9/Mines | Discovered new exit (range 5) 1364 | -9/Mines | Identified exit to Exiles 1364 | -9/Mines | Entered Exiles 1386 | -9/Exiles | Met 8R-AWN 1401 | -9/Exiles | Met EX-HEX 1437 | -9/Exiles | Met EX-DEC 1509 | -9/Exiles | Met EX-BIN 1522 | -9/Exiles | Aligned with FarCom system 1523 | -9/Exiles | Given EX-Vault access code 1552 | -9/Exiles | Opened EX-Vault 1562 | -9/Exiles | Found Cloak of Protection 1570 | -9/Exiles | Found Flying Fortress v7 1592 | -9/Exiles | Warned to stay clear of 0b10 Research branches 1597 | -9/Exiles | Exiles lab attacked by MAIN.C 1680 | -9/Exiles | Discovered new exit (range 10) 1694 | -9/Exiles | Identified exit to Mines 1696 | -9/Exiles | Stole two prototypes: Flying Fortress v7, Cloak of Protection 1696 | -9/Exiles | Entered Mines 1960 | -8/Mines | Destroyed by G-47 Trooper with Particle Gun Last Messages --------------- 01943_ R-06 Scavenger collects Corrupted Adv. Heat Sink. 01945_ Particle Gun destroyed. 01945_ Destroyed Particle Gun. 01946_ U-05 Engineer builds a Wall. 01946_ R-06 Scavenger collects Carbon-fiber Leg. 01949_ R-06 Scavenger collects Wheel. 01951_ Destroyed Imp. Heat Sink. 01952_ The unstable cave ceiling collapses. 01952_ U-05 Engineer lays Concrete. 01953_ U-05 Engineer builds a Wall. 01953_ G-47 Trooper destroyed. 01954_ The unstable cave ceiling collapses. 01954_ R-06 Scavenger collects Welding Torch. 01955_ Destroyed Melee Analysis Suite. 01955_ G-47 Trooper destroyed. 01955_ R-06 Scavenger destroyed. 01956_ The unstable cave ceiling collapses. 01957_ U-05 Engineer builds a Wall. 01957_ L-31 Rogue destroyed. Map ----- +----------------------------------------------------+ | ?????????????????????????????????????????????????? | | ?????????????????????????????????????????????????? | | ?????????????????????????????????????????????????? | | ?????????????????????????????????????????????????? | | ?????????????????????????????????????????????????? | | ?????????????????????????????????????????????????? | | ???????????????????????? "???????????????????????? | | ???????????????????????? "???????????????????????? | | ????????????????????????"%???????????????????????? | | ???????????????????????? ???????????????????????? | | ????????????????????????# #??????????????????????? | | ???????????????????????## #??????????????????????? | | ??????????????????????###u=#?????????????????????? | | ?????????????????????##=#=%##????????????????????? | | ?????????????????????# %=!| #????????????????????? | | ?????????????????????# =# #????????????????????? | | ????????????????????## #????????????????????? | | ????????????????????? % ##???????????????????? | | ????????????????????## #???????????????????? | | ????????????????????# =%! #???????????????????? | | ????????????????????# #???????????????????? | | ??????????????????#### g ##??????????????????? | | ?????????????????## # #??????????????????? | | ????????????????## #??????????????????? | | ???????????????## #???????????????????? | | ???????????##### ##@####???????????????????? | | ???????????# ##%#??????????????????????? | | ???????????# ##%#??????????????????????? | | ???????#?# ### ## #??????????????????????? | | ###### #?#?????# ## #??????????????????????? | | #???????## #??????????????????????? | | ??????????# ####??????????????????????? | | #?????????????## ##?????????????????????????? | | #??????????????# ###??????????????????????????? | | #??????????????# ###??????????????###?????????? | | ##??????????????# #????????????## ##????????? | | #???????? ?????#### #????###????## #????????? | | #???????? ???????# #???## ##?## #????????? | | ##??????? ???????# #???# ### """ ##???????? | | #??????? ???????# #???# """ ##??????? | | #??????? ???????# #????# """ ##?????? | | #??????? ????????# #?????# #?????? | | #?????## ????????# #?????# #?????? | | # #?????# ????????# #????## ##????? | | #%#?????# ????????# ###### ## ##???? | | # #?????# #????????# % #### ##??? | | # #?????# #????????#####%### #??## #??? | | # ###???# #????????????# #?### #???# ##?? | | # #???# #???????????## ##### #???# #?? | | ### #???# #??????????## #???## #?? | +----------------------------------------------------+ Best States ------------- Heat Dissipation 28 Energy Generation 12 Energy Capacity 265 Matter Stores 300 Matter Capacity 300 Sight Range 16 Robot Scan Range 14 Terrain Scan Density 10 Evasion (%) 43 Recoil Reduction 2 Item Schematics ----------------- None Robot Schematics ------------------ None Fabricated ------------ Nothing Repaired ---------- Nothing Studied --------- None Alien Tech Used ----------------- None Achievements -------------- None Challenges ------------ None Game ------ Seed BlinkTiamatScythe Manual? 0 Play Time 00:13:23 Cumulative 185.7 hours Start 2026.09.01 @ 00:27:18 End 2026.09.01 @ 00:41:58 Sessions 1 Manual Loads 0 Difficulty Rogue Special Mode None Game No. 370 Rogue 370 Adventurer 0 Explorer 0 Win Type - Total 2 Types 2/0/0/0/0/0/0/0/0/0 Lore% 59 Gallery% 60 Achievement% 47 Wizard Run 0 Options --------- Layout 2 ASCII 0 Keyboard 1 Movement Arrows Keybinds 0 Fullscreen 1 Font 24/Smallcaps Map View 50x44 Zoom Use 0% Tactical HUD 1 Map Filters NONE Filters NONE Steam 1 RUN: c16bff1c-8bde-4c5c-9d27-0529e37c7a48